[Event "Queens Festival Europe 2022"]
[Site "Tornelo"]
[Date "2022.06.19"]
[Round "5.6"]
[White "Egger, Stefanie"]
[Black "van den Brink, Nienke"]
[Result "0-1"]
[ECO "A80"]
[WhiteElo "1700"]
[BlackElo "1771"]
[Annotator "NA RC"]
[PlyCount "64"]
[EventDate "2022.06.19"]
[EventType "swiss"]
[EventCountry "NET"]
[SourceTitle "playchess.com"]
[Source "ChessBase"]
[SourceQuality "1"]
[TimeControl "180+2"]

1. d4 {[%emt 0:00:02]} f5 {[%emt 0:00:05]} 2. Bg5 {[%emt 0:00:06]} Nf6 {[%emt 0:00:06]} 3. e3 {[%emt 0:00:14]} e6 {[%emt 0:00:03]} 4. h4 {[%emt 0:00:07]} Be7 {[%emt 0:00:07]} 5. Nf3 {[%emt 0:00:04]} b6 {[%emt 0:00:05]} 6. Nbd2 {[%emt 0:00:03]} Bb7 {[%emt 0:00:02]} 7. Be2 {[%emt 0:00:11]} O-O {[%emt 0:00:02]} 8. O-O {[%emt 0:00:01]} d6 {[%emt 0:00:08]} 9. c4 {[%emt 0:00:05]} Nbd7 {[%emt 0:00:08]} 10. Qc2 {[%emt 0:00:18]} Ne4 {[%emt 0:00:02]} 11. Nxe4 {[%emt 0:00:08]} Bxe4 {[%emt 0:00:07]} 12. Bxe7 {[%emt 0:00:09]} Qxe7 {[%emt 0:00:03]} 13. Qd2 {[%emt 0:00:12]} Rae8 {[%emt 0:00:04]} 14. g3 {[%emt 0:00:19]} Nf6 {[%emt 0:00:04]} 15. Ng5 {[%emt 0:00:04]} Bb7 {[%emt 0:00:05]} 16. Bf3 {[%emt 0:00:06]} Bxf3 {[%emt 0:00:14]} 17. Nxf3 {[%emt 0:00:02]} Ne4 {[%emt 0:00:01]} 18. Qd3 {[%emt 0:00:08]} e5 {[%emt 0:00:05]} 19. d5 {[%emt 0:00:07]} Nc5 {[%emt 0:00:08]} 20. Qc3 {[%emt 0:00:06]} f4 {[%emt 0:00:09]} 21. exf4 {[%emt 0:00:03]} exf4 {[%emt 0:00:02]} 22. Rae1 {[%emt 0:00:05]} Qf7 {[%emt 0:00:13]} 23. Ng5 {[%emt 0:00:05]} Qf5 {[%emt 0:00:08]} 24. Rxe8 {[%emt 0:00:19]} Rxe8 {[%emt 0:00:02]} 25. Re1 {[%emt 0:00:02]} Rxe1+ {[%emt 0:00:10]} 26. Qxe1 {[%emt 0:00:03]} fxg3 {[%emt 0:00:06]} 27. Qe8+ {[%emt 0:00:06]} Qf8 {[%emt 0:00:02]} 28. Qe6+ {[%emt 0:00:02]} Kh8 {[%emt 0:00:04]} 29. Nf7+ {[%emt 0:00:09]} Kg8 {[%emt 0:00:14]} 30. Nh6+ {[%emt 0:00:06]} Kh8 {[%emt 0:00:02]} 31. Qg8+ {[%emt 0:00:01]} Qxg8 {[%emt 0:00:02]} 32. Nf7+ {[%emt 0:00:01]} Qxf7 {[%emt 0:00:02]} 0-1

[Event "Queens Festival Europe 2022"]
[Site "Tornelo"]
[Date "2022.06.19"]
[Round "5.7"]
[White "Smith, Olivia"]
[Black "Kordzadze, Nino"]
[Result "0-1"]
[ECO "C15"]
[WhiteElo "2039"]
[BlackElo "2043"]
[Annotator "NA RC"]
[PlyCount "46"]
[EventDate "2022.06.19"]
[EventType "swiss"]
[EventCountry "NET"]
[SourceTitle "playchess.com"]
[Source "ChessBase"]
[SourceQuality "1"]
[TimeControl "180+2"]

1. e4 {[%emt 0:00:02]} e6 {[%emt 0:00:04]} 2. d4 {[%emt 0:00:15]} d5 {[%emt 0:00:02]} 3. Nc3 {[%emt 0:00:06]} Bb4 {[%emt 0:00:06]} 4. Nge2 {[%emt 0:00:05]} Nf6 {[%emt 0:00:12]} 5. a3 {[%emt 0:00:05]} Bxc3+ {[%emt 0:00:05]} 6. Nxc3 {[%emt 0:00:02]} Nxe4 {[%emt 0:00:02]} 7. Nxe4 {[%emt 0:00:07]} dxe4 {[%emt 0:00:01]} 8. Be3 {[%emt 0:00:07]} Bd7 {[%emt 0:00:03]} 9. Qg4 {[%emt 0:00:07]} O-O {[%emt 0:00:15]} 10. Qxe4 {[%emt 0:00:07]} Bc6 {[%emt 0:00:01]} 11. Qd3 {[%emt 0:00:26]} Nd7 {[%emt 0:00:07]} 12. O-O-O {[%emt 0:00:03]} Nf6 {[%emt 0:00:02]} 13. f3 {[%emt 0:00:04]} Nd5 {[%emt 0:00:05]} 14. Bd2 {[%emt 0:00:06]} Qf6 {[%emt 0:00:06]} 15. h4 {[%emt 0:00:13]} h6 {[%emt 0:00:22]} 16. Be2 {[%emt 0:00:17]} Nf4 {[%emt 0:00:17]} 17. Bxf4 {[%emt 0:00:03]} Qxf4+ {[%emt 0:00:02]} 18. Kb1 {[%emt 0:00:01]} Rad8 {[%emt 0:00:01]} 19. Qc3 {[%emt 0:00:35]} Qg3 {[%emt 0:00:13]} 20. h5 {[%emt 0:00:23]} Rd5 {[%emt 0:00:28]} 21. Bd3 {[%emt 0:00:02]} Rg5 {[%emt 0:00:38]} 22. Rdg1 {[%emt 0:00:09]} Rd8 {[%emt 0:00:06]} 23. Be4 {[%emt 0:00:12]} Bd5 {[%emt 0:00:02]} 0-1

[Event "Queens Festival Europe 2022"]
[Site "Tornelo"]
[Date "2022.06.19"]
[Round "5.7"]
[White "Cassi, Elisa"]
[Black "Grimaldi, Angela Flavia"]
[Result "0-1"]
[ECO "B36"]
[WhiteElo "1999"]
[BlackElo "1995"]
[Annotator "NA RC"]
[PlyCount "96"]
[EventDate "2022.06.19"]
[EventType "swiss"]
[EventCountry "NET"]
[SourceTitle "playchess.com"]
[Source "ChessBase"]
[SourceQuality "1"]
[TimeControl "180+2"]

1. e4 {[%emt 0:00:02]} c5 {[%emt 0:00:04]} 2. Nf3 {[%emt 0:00:02]} g6 {[%emt 0:00:02]} 3. d4 {[%emt 0:00:02]} cxd4 {[%emt 0:00:01]} 4. Nxd4 {[%emt 0:00:01]} Nc6 {[%emt 0:00:01]} 5. c4 {[%emt 0:00:01]} Nf6 {[%emt 0:00:02]} 6. Nc3 {[%emt 0:00:02]} Nxd4 {[%emt 0:00:03]} 7. Qxd4 {[%emt 0:00:02]} d6 {[%emt 0:00:01]} 8. f3 {[%emt 0:00:05]} Bg7 {[%emt 0:00:01]} 9. Be3 {[%emt 0:00:08]} O-O {[%emt 0:00:02]} 10. Qd2 {[%emt 0:00:02]} Be6 {[%emt 0:00:26]} 11. Be2 {[%emt 0:00:06]} Qa5 {[%emt 0:00:06]} 12. Nb5 {[%emt 0:01:12]} Qxd2+ {[%emt 0:00:09]} 13. Kxd2 {[%emt 0:00:01]} a6 {[%emt 0:00:56]} 14. Nc7 {[%emt 0:00:02]} Rac8 {[%emt 0:00:03]} 15. Nxe6 {[%emt 0:00:01]} fxe6 {[%emt 0:00:00]} 16. Rac1 {[%emt 0:00:04]} Nd7 {[%emt 0:00:03]} 17. b4 {[%emt 0:00:05]} a5 {[%emt 0:00:26]} 18. a3 {[%emt 0:00:02]} axb4 {[%emt 0:00:04]} 19. axb4 {[%emt 0:00:01]} Ra8 {[%emt 0:00:02]} 20. c5 {[%emt 0:00:16]} Ra2+ {[%emt 0:00:08]} 21. Rc2 {[%emt 0:00:01]} Rxc2+ {[%emt 0:00:10]} 22. Kxc2 {[%emt 0:00:02]} Ra8 {[%emt 0:00:19]} 23. Kb3 {[%emt 0:00:09]} d5 {[%emt 0:00:21]} 24. Rd1 {[%emt 0:00:06]} Ra1 {[%emt 0:00:11]} 25. Rxa1 {[%emt 0:00:27]} Bxa1 {[%emt 0:00:00]} 26. Bb5 {[%emt 0:00:13]} Nf6 {[%emt 0:00:03]} 27. c6 {[%emt 0:00:16]} bxc6 {[%emt 0:00:00]} 28. Bxc6 {[%emt 0:00:00]} Kf7 {[%emt 0:00:07]} 29. b5 {[%emt 0:00:04]} d4 {[%emt 0:00:02]} 30. Bd2 {[%emt 0:00:04]} Ne8 {[%emt 0:00:03]} 31. e5 {[%emt 0:00:03]} Nc7 {[%emt 0:00:04]} 32. b6 {[%emt 0:00:05]} Na6 {[%emt 0:00:01]} 33. b7 {[%emt 0:00:04]} Nb8 {[%emt 0:00:02]} 34. Ba5 {[%emt 0:00:08]} Nxc6 {[%emt 0:00:03]} 35. Bc7 {[%emt 0:00:01]} Bc3 {[%emt 0:00:01]} 36. b8=Q {[%emt 0:00:05]} Nxb8 {[%emt 0:00:01]} 37. Bxb8 {[%emt 0:00:01]} g5 {[%emt 0:00:02]} 38. Kc4 {[%emt 0:00:02]} Kg6 {[%emt 0:00:01]} 39. Ba7 {[%emt 0:00:02]} Kf5 {[%emt 0:00:02]} 40. Bxd4 {[%emt 0:00:03]} Be1 {[%emt 0:00:03]} 41. Kd3 {[%emt 0:00:06]} h5 {[%emt 0:00:02]} 42. Ke3 {[%emt 0:00:03]} Ba5 {[%emt 0:00:02]} 43. g3 {[%emt 0:00:03]} Bc7 {[%emt 0:00:03]} 44. f4 {[%emt 0:00:02]} g4 {[%emt 0:00:02]} 45. Bc5 {[%emt 0:00:03]} Bd8 {[%emt 0:00:02]} 46. Kf2 {[%emt 0:00:02]} Ba5 {[%emt 0:00:03]} 47. Kg2 {[%emt 0:00:02]} Bd8 {[%emt 0:00:02]} 48. h3 {[%emt 0:00:02]} Ba5 {[%emt 0:00:01]} 0-1

[Event "Queens Festival Europe 2022"]
[Site "Tornelo"]
[Date "2022.06.19"]
[Round "5.7"]
[White "Frundina, Yelyzaveta"]
[Black "Vukosavljevic, Tatjana"]
[Result "0-1"]
[ECO "C43"]
[WhiteElo "1624"]
[BlackElo "1758"]
[Annotator "NA RC"]
[PlyCount "104"]
[EventDate "2022.06.19"]
[EventType "swiss"]
[EventCountry "NET"]
[SourceTitle "playchess.com"]
[Source "ChessBase"]
[SourceQuality "1"]
[TimeControl "180+2"]

1. e4 {[%emt 0:00:02]} e5 {[%emt 0:00:05]} 2. Nf3 {[%emt 0:00:03]} Nf6 {[%emt 0:00:02]} 3. d4 {[%emt 0:00:07]} exd4 {[%emt 0:00:10]} 4. Nxd4 {[%emt 0:00:10]} Nxe4 {[%emt 0:00:03]} 5. Nc3 {[%emt 0:00:10]} Nxc3 {[%emt 0:00:03]} 6. bxc3 {[%emt 0:00:02]} Be7 {[%emt 0:00:12]} 7. Bd3 {[%emt 0:00:09]} d5 {[%emt 0:00:07]} 8. O-O {[%emt 0:00:11]} Nd7 {[%emt 0:00:08]} 9. Re1 {[%emt 0:00:21]} O-O {[%emt 0:00:07]} 10. Nf5 {[%emt 0:00:23]} Bf6 {[%emt 0:00:07]} 11. Bd2 {[%emt 0:00:35]} Ne5 {[%emt 0:00:12]} 12. Ng3 {[%emt 0:00:26]} Nxd3 {[%emt 0:00:07]} 13. cxd3 {[%emt 0:00:04]} c5 {[%emt 0:00:07]} 14. Rb1 {[%emt 0:00:17]} b6 {[%emt 0:00:02]} 15. Qf3 {[%emt 0:00:11]} Be6 {[%emt 0:00:13]} 16. Nh5 {[%emt 0:00:09]} Bg5 {[%emt 0:00:55]} 17. Bxg5 {[%emt 0:00:07]} Qxg5 {[%emt 0:00:03]} 18. Ng3 {[%emt 0:00:02]} Rad8 {[%emt 0:00:08]} 19. a4 {[%emt 0:00:06]} Bg4 {[%emt 0:00:04]} 20. Qe3 {[%emt 0:00:03]} Qxe3 {[%emt 0:00:04]} 21. Rxe3 {[%emt 0:00:01]} Rfe8 {[%emt 0:00:01]} 22. Rxe8+ {[%emt 0:00:04]} Rxe8 {[%emt 0:00:02]} 23. Kf1 {[%emt 0:00:02]} f6 {[%emt 0:00:05]} 24. Re1 {[%emt 0:00:02]} Rxe1+ {[%emt 0:00:03]} 25. Kxe1 {[%emt 0:00:01]} Bd7 {[%emt 0:00:03]} 26. Kd2 {[%emt 0:00:02]} Bxa4 {[%emt 0:00:02]} 27. Ke3 {[%emt 0:00:02]} Kf7 {[%emt 0:00:03]} 28. Nf5 {[%emt 0:00:02]} g6 {[%emt 0:00:10]} 29. Nd6+ {[%emt 0:00:02]} Ke6 {[%emt 0:00:04]} 30. Nc8 {[%emt 0:00:03]} Kd7 {[%emt 0:00:08]} 31. Nxa7 {[%emt 0:00:03]} Kc7 {[%emt 0:00:07]} 32. c4 {[%emt 0:00:02]} dxc4 {[%emt 0:00:03]} 33. dxc4 {[%emt 0:00:02]} Kb7 {[%emt 0:00:06]} 34. Nb5 {[%emt 0:00:01]} Bxb5 {[%emt 0:00:02]} 35. cxb5 {[%emt 0:00:01]} Kc7 {[%emt 0:00:01]} 36. Ke4 {[%emt 0:00:01]} Kd6 {[%emt 0:00:01]} 37. Kd3 {[%emt 0:00:03]} Kd5 {[%emt 0:00:02]} 38. f3 {[%emt 0:00:02]} f5 {[%emt 0:00:02]} 39. g3 {[%emt 0:00:02]} h5 {[%emt 0:00:02]} 40. h4 {[%emt 0:00:02]} Ke5 {[%emt 0:00:02]} 41. f4+ {[%emt 0:00:02]} Kd5 {[%emt 0:00:03]} 42. Kc3 {[%emt 0:00:03]} Ke4 {[%emt 0:00:02]} 43. Kc4 {[%emt 0:00:02]} Kf3 {[%emt 0:00:03]} 44. Kd5 {[%emt 0:00:01]} Kxg3 {[%emt 0:00:00]} 45. Kc6 {[%emt 0:00:02]} c4 {[%emt 0:00:02]} 46. Kxb6 {[%emt 0:00:02]} c3 {[%emt 0:00:02]} 47. Ka6 {[%emt 0:00:02]} c2 {[%emt 0:00:01]} 48. b6 {[%emt 0:00:02]} c1=Q {[%emt 0:00:00]} 49. b7 {[%emt 0:00:01]} Qb2 {[%emt 0:00:01]} 50. Ka7 {[%emt 0:00:02]} Kxf4 {[%emt 0:00:02]} 51. b8=Q+ {[%emt 0:00:03]} Qxb8+ {[%emt 0:00:02]} 52. Kxb8 {[%emt 0:00:02]} Kg4 {[%emt 0:00:00]} 0-1

[Event "Queens Festival Europe 2022"]
[Site "Tornelo"]
[Date "2022.06.19"]
[Round "5.8"]
[White "Machlik, Edit"]
[Black "Steffensen, Elena"]
[Result "1-0"]
[ECO "A42"]
[WhiteElo "2084"]
[BlackElo "2044"]
[Annotator "NA RC"]
[PlyCount "79"]
[EventDate "2022.06.19"]
[EventType "swiss"]
[EventCountry "NET"]
[SourceTitle "playchess.com"]
[Source "ChessBase"]
[SourceQuality "1"]
[TimeControl "180+2"]

1. d4 {[%emt 0:00:02]} g6 {[%emt 0:00:05]} 2. c4 {[%emt 0:00:02]} Bg7 {[%emt 0:00:02]} 3. Nc3 {[%emt 0:00:02]} c6 {[%emt 0:00:10]} 4. e4 {[%emt 0:00:02]} d6 {[%emt 0:00:01]} 5. f4 {[%emt 0:00:03]} e5 {[%emt 0:00:12]} 6. fxe5 {[%emt 0:00:04]} dxe5 {[%emt 0:00:05]} 7. d5 {[%emt 0:00:02]} cxd5 {[%emt 0:00:07]} 8. cxd5 {[%emt 0:00:03]} Ne7 {[%emt 0:00:09]} 9. Nf3 {[%emt 0:00:04]} O-O {[%emt 0:00:02]} 10. Bc4 {[%emt 0:00:09]} a6 {[%emt 0:00:06]} 11. O-O {[%emt 0:00:04]} b5 {[%emt 0:00:02]} 12. Bb3 {[%emt 0:00:04]} Bg4 {[%emt 0:00:03]} 13. Bg5 {[%emt 0:00:07]} b4 {[%emt 0:00:44]} 14. Na4 {[%emt 0:00:05]} Qc7 {[%emt 0:00:12]} 15. Kh1 {[%emt 0:00:24]} Nc8 {[%emt 0:00:04]} 16. Qd2 {[%emt 0:00:20]} Nd6 {[%emt 0:00:03]} 17. Rac1 {[%emt 0:00:13]} Qa7 {[%emt 0:00:20]} 18. Qd3 {[%emt 0:00:13]} Nd7 {[%emt 0:00:07]} 19. Be7 {[%emt 0:00:07]} Nc5 {[%emt 0:00:15]} 20. Rxc5 {[%emt 0:00:17]} Qxe7 {[%emt 0:00:02]} 21. Rfc1 {[%emt 0:00:03]} Ra7 {[%emt 0:00:04]} 22. Rc6 {[%emt 0:00:04]} Nb5 {[%emt 0:00:09]} 23. d6 {[%emt 0:00:29]} Qd7 {[%emt 0:00:04]} 24. Ng5 {[%emt 0:00:10]} h6 {[%emt 0:00:08]} 25. Nb6 {[%emt 0:00:13]} Qd8 {[%emt 0:00:10]} 26. Nxf7 {[%emt 0:00:07]} Raxf7 {[%emt 0:00:04]} 27. Bxf7+ {[%emt 0:00:02]} Kh7 {[%emt 0:00:09]} 28. Bb3 {[%emt 0:00:09]} Nd4 {[%emt 0:00:04]} 29. Rc7 {[%emt 0:00:05]} Qg5 {[%emt 0:00:04]} 30. Nd5 {[%emt 0:00:04]} Nb5 {[%emt 0:00:04]} 31. Rb7 {[%emt 0:00:04]} Qxc1+ {[%emt 0:00:02]} 32. Bd1 {[%emt 0:00:03]} Bxd1 {[%emt 0:00:07]} 33. h3 {[%emt 0:00:01]} Be2+ {[%emt 0:00:05]} 34. Kh2 {[%emt 0:00:02]} Bxd3 {[%emt 0:00:01]} 35. d7 {[%emt 0:00:01]} Qf4+ {[%emt 0:00:02]} 36. Nxf4 {[%emt 0:00:03]} exf4 {[%emt 0:00:02]} 37. Rb6 {[%emt 0:00:05]} f3 {[%emt 0:00:03]} 38. gxf3 {[%emt 0:00:04]} Be5+ {[%emt 0:00:02]} 39. Kg2 {[%emt 0:00:01]} Nd4 {[%emt 0:00:03]} 40. Rb7 {[%emt 0:00:02]} 1-0

[Event "Queens Festival Europe 2022"]
[Site "Tornelo"]
[Date "2022.06.19"]
[Round "5.8"]
[White "Arora, Tashika"]
[Black "Mdivani, Maka"]
[Result "0-1"]
[ECO "E60"]
[WhiteElo "1822"]
[BlackElo "1901"]
[Annotator "NA RC"]
[PlyCount "80"]
[EventDate "2022.06.19"]
[EventType "swiss"]
[EventCountry "NET"]
[SourceTitle "playchess.com"]
[Source "ChessBase"]
[SourceQuality "1"]
[TimeControl "180+2"]

1. d4 {[%emt 0:00:02]} Nf6 {[%emt 0:00:08]} 2. c4 {[%emt 0:00:02]} d6 {[%emt 0:00:03]} 3. g3 {[%emt 0:00:02]} g6 {[%emt 0:00:04]} 4. Bg2 {[%emt 0:00:02]} Bg7 {[%emt 0:00:02]} 5. Nf3 {[%emt 0:00:01]} c6 {[%emt 0:00:03]} 6. O-O {[%emt 0:00:02]} Nbd7 {[%emt 0:00:02]} 7. Nc3 {[%emt 0:00:02]} Qc7 {[%emt 0:00:03]} 8. e4 {[%emt 0:00:02]} e5 {[%emt 0:00:03]} 9. d5 {[%emt 0:00:02]} O-O {[%emt 0:00:03]} 10. Bd2 {[%emt 0:00:03]} a5 {[%emt 0:00:03]} 11. Rc1 {[%emt 0:00:03]} Nc5 {[%emt 0:00:04]} 12. Re1 {[%emt 0:00:06]} Nd3 {[%emt 0:00:05]} 13. Be3 {[%emt 0:00:07]} Nxe1 {[%emt 0:00:08]} 14. Qxe1 {[%emt 0:00:04]} Bd7 {[%emt 0:00:08]} 15. Qd2 {[%emt 0:00:12]} Ng4 {[%emt 0:00:06]} 16. h3 {[%emt 0:00:09]} Nxe3 {[%emt 0:00:02]} 17. Qxe3 {[%emt 0:00:02]} f5 {[%emt 0:00:06]} 18. Na4 {[%emt 0:00:29]} cxd5 {[%emt 0:00:07]} 19. cxd5 {[%emt 0:00:05]} Qd8 {[%emt 0:00:04]} 20. Nb6 {[%emt 0:00:09]} Ra6 {[%emt 0:00:08]} 21. Nxd7 {[%emt 0:00:04]} Qxd7 {[%emt 0:00:02]} 22. Bf1 {[%emt 0:00:06]} Raa8 {[%emt 0:00:04]} 23. Nd2 {[%emt 0:00:07]} Rac8 {[%emt 0:00:04]} 24. Nc4 {[%emt 0:00:05]} fxe4 {[%emt 0:00:16]} 25. Rd1 {[%emt 0:00:10]} Qe7 {[%emt 0:00:29]} 26. Qxe4 {[%emt 0:00:07]} Rc5 {[%emt 0:00:15]} 27. a3 {[%emt 0:00:05]} Qf6 {[%emt 0:00:15]} 28. Qe3 {[%emt 0:00:07]} a4 {[%emt 0:00:13]} 29. Bg2 {[%emt 0:00:12]} Rxc4 {[%emt 0:00:04]} 30. f3 {[%emt 0:00:19]} Rc2 {[%emt 0:00:08]} 31. Qd3 {[%emt 0:00:09]} Rxb2 {[%emt 0:00:04]} 32. Qe4 {[%emt 0:00:16]} Rc8 {[%emt 0:00:03]} 33. Qxa4 {[%emt 0:00:07]} Rcc2 {[%emt 0:00:09]} 34. Qe8+ {[%emt 0:00:03]} Qf8 {[%emt 0:00:04]} 35. Qe6+ {[%emt 0:00:04]} Kh8 {[%emt 0:00:04]} 36. Bh1 {[%emt 0:00:04]} Bh6 {[%emt 0:00:05]} 37. Re1 {[%emt 0:00:09]} Re2 {[%emt 0:00:09]} 38. Rxe2 {[%emt 0:00:06]} Rxe2 {[%emt 0:00:03]} 39. Kf1 {[%emt 0:00:02]} Rc2 {[%emt 0:00:04]} 40. Bg2 {[%emt 0:00:06]} Be3 {[%emt 0:00:02]} 0-1

[Event "Queens Festival Europe 2022"]
[Site "Tornelo"]
[Date "2022.06.19"]
[Round "5.8"]
[White "Jafarova, Aysel"]
[Black "Hariharan, Shambavi"]
[Result "0-1"]
[ECO "D45"]
[WhiteElo "1481"]
[BlackElo "1517"]
[Annotator "NA RC"]
[PlyCount "52"]
[EventDate "2022.06.19"]
[EventType "swiss"]
[EventCountry "NET"]
[SourceTitle "playchess.com"]
[Source "ChessBase"]
[SourceQuality "1"]
[TimeControl "180+2"]

1. d4 {[%emt 0:00:02]} d5 {[%emt 0:00:05]} 2. c4 {[%emt 0:00:02]} c6 {[%emt 0:00:01]} 3. Nf3 {[%emt 0:00:01]} Nf6 {[%emt 0:00:01]} 4. e3 {[%emt 0:00:05]} e6 {[%emt 0:00:05]} 5. Nc3 {[%emt 0:00:03]} Nbd7 {[%emt 0:00:03]} 6. Qc2 {[%emt 0:00:04]} Be7 {[%emt 0:00:06]} 7. Be2 {[%emt 0:00:01]} dxc4 {[%emt 0:00:01]} 8. Bxc4 {[%emt 0:00:02]} b5 {[%emt 0:00:02]} 9. Bd3 {[%emt 0:00:02]} Bb7 {[%emt 0:00:01]} 10. O-O {[%emt 0:00:02]} O-O {[%emt 0:00:02]} 11. e4 {[%emt 0:00:07]} h6 {[%emt 0:00:08]} 12. h3 {[%emt 0:00:03]} a6 {[%emt 0:00:03]} 13. Be3 {[%emt 0:00:01]} c5 {[%emt 0:00:13]} 14. dxc5 {[%emt 0:00:24]} Bxc5 {[%emt 0:00:04]} 15. Bxc5 {[%emt 0:00:06]} Nxc5 {[%emt 0:00:02]} 16. Rfd1 {[%emt 0:00:10]} Nxd3 {[%emt 0:00:07]} 17. Rxd3 {[%emt 0:00:07]} Qc7 {[%emt 0:00:06]} 18. Rd2 {[%emt 0:00:15]} Rfd8 {[%emt 0:00:08]} 19. Rad1 {[%emt 0:00:03]} Rxd2 {[%emt 0:00:07]} 20. Rxd2 {[%emt 0:00:03]} Rc8 {[%emt 0:00:02]} 21. Nd4 {[%emt 0:00:45]} e5 {[%emt 0:00:11]} 22. Nf5 {[%emt 0:00:37]} b4 {[%emt 0:00:06]} 23. Qd3 {[%emt 0:00:21]} bxc3 {[%emt 0:00:04]} 24. bxc3 {[%emt 0:00:01]} Bxe4 {[%emt 0:00:04]} 25. Qg3 {[%emt 0:00:04]} Bxf5 {[%emt 0:00:02]} 26. Qe3 {[%emt 0:00:13]} Bg6 {[%emt 0:00:10]} 0-1

[Event "Queens Festival Europe 2022"]
[Site "Tornelo"]
[Date "2022.06.19"]
[Round "5.9"]
[White "Stewart-Bermann, Tanya"]
[Black "Rahimli, Izzat"]
[Result "1/2-1/2"]
[ECO "B40"]
[WhiteElo "1863"]
[BlackElo "1817"]
[Annotator "NA RC"]
[PlyCount "85"]
[EventDate "2022.06.19"]
[EventType "swiss"]
[EventCountry "NET"]
[SourceTitle "playchess.com"]
[Source "ChessBase"]
[SourceQuality "1"]
[TimeControl "180+2"]

1. e4 {[%emt 0:00:02]} e6 {[%emt 0:00:05]} 2. d3 {[%emt 0:00:03]} d5 {[%emt 0:00:02]} 3. Nd2 {[%emt 0:00:03]} c5 {[%emt 0:00:06]} 4. Ngf3 {[%emt 0:00:01]} Nc6 {[%emt 0:00:05]} 5. g3 {[%emt 0:00:04]} dxe4 {[%emt 0:00:12]} 6. dxe4 {[%emt 0:00:02]} Nf6 {[%emt 0:00:04]} 7. Bb5 {[%emt 0:00:04]} Bd7 {[%emt 0:00:05]} 8. O-O {[%emt 0:00:03]} Be7 {[%emt 0:00:06]} 9. c3 {[%emt 0:00:04]} O-O {[%emt 0:00:03]} 10. Re1 {[%emt 0:00:02]} a6 {[%emt 0:00:03]} 11. Bf1 {[%emt 0:00:07]} e5 {[%emt 0:00:08]} 12. Qc2 {[%emt 0:00:15]} b5 {[%emt 0:00:03]} 13. Bg2 {[%emt 0:00:14]} Qc7 {[%emt 0:00:05]} 14. Nf1 {[%emt 0:00:09]} h6 {[%emt 0:00:05]} 15. Ne3 {[%emt 0:00:06]} Be6 {[%emt 0:00:12]} 16. b3 {[%emt 0:00:09]} Rfd8 {[%emt 0:00:04]} 17. Bb2 {[%emt 0:00:18]} Rd7 {[%emt 0:00:03]} 18. Rad1 {[%emt 0:00:03]} Rad8 {[%emt 0:00:02]} 19. c4 {[%emt 0:00:10]} Nd4 {[%emt 0:00:10]} 20. Nxd4 {[%emt 0:00:03]} cxd4 {[%emt 0:00:14]} 21. Nf5 {[%emt 0:00:31]} bxc4 {[%emt 0:00:21]} 22. Nxe7+ {[%emt 0:00:10]} Rxe7 {[%emt 0:00:05]} 23. bxc4 {[%emt 0:00:13]} Qxc4 {[%emt 0:00:04]} 24. Qd2 {[%emt 0:00:11]} Qxa2 {[%emt 0:00:10]} 25. Ra1 {[%emt 0:00:07]} Qc4 {[%emt 0:00:09]} 26. Rec1 {[%emt 0:00:02]} Qb5 {[%emt 0:00:13]} 27. Ba3 {[%emt 0:00:02]} Rb7 {[%emt 0:00:15]} 28. Bf1 {[%emt 0:00:03]} d3 {[%emt 0:00:06]} 29. Bg2 {[%emt 0:00:06]} Qd7 {[%emt 0:00:13]} 30. Bb2 {[%emt 0:00:04]} Rdb8 {[%emt 0:00:05]} 31. Bxe5 {[%emt 0:00:03]} Ra8 {[%emt 0:00:04]} 32. Bxf6 {[%emt 0:00:04]} gxf6 {[%emt 0:00:03]} 33. Qxh6 {[%emt 0:00:02]} Rab8 {[%emt 0:00:12]} 34. Qxf6 {[%emt 0:00:03]} d2 {[%emt 0:00:05]} 35. Rd1 {[%emt 0:00:02]} Rb2 {[%emt 0:00:04]} 36. Bf3 {[%emt 0:00:02]} R8b7 {[%emt 0:00:05]} 37. Qg5+ {[%emt 0:00:02]} Kf8 {[%emt 0:00:02]} 38. Qh6+ {[%emt 0:00:02]} Ke7 {[%emt 0:00:03]} 39. Qg5+ {[%emt 0:00:02]} Ke8 {[%emt 0:00:02]} 40. Qg8+ {[%emt 0:00:03]} Ke7 {[%emt 0:00:02]} 41. Qg5+ {[%emt 0:00:02]} Ke8 {[%emt 0:00:02]} 42. Qg8+ {[%emt 0:00:05]} Ke7 {[%emt 0:00:02]} 43. Qg5+ {[%emt 0:00:02]} 1/2-1/2

[Event "Queens Festival Europe 2022"]
[Site "Tornelo"]
[Date "2022.06.19"]
[Round "5.10"]
[White "Malaieru, Alexandra-Gabriela"]
[Black "Andries, Leia"]
[Result "0-1"]
[ECO "D05"]
[WhiteElo "1129"]
[BlackElo "1438"]
[Annotator "NA RC"]
[PlyCount "74"]
[EventDate "2022.06.19"]
[EventType "swiss"]
[EventCountry "NET"]
[SourceTitle "playchess.com"]
[Source "ChessBase"]
[SourceQuality "1"]
[TimeControl "180+2"]

1. d4 {[%emt 0:00:02]} Nf6 {[%emt 0:00:05]} 2. Nf3 {[%emt 0:00:03]} e6 {[%emt 0:00:03]} 3. e3 {[%emt 0:00:02]} c5 {[%emt 0:00:03]} 4. c3 {[%emt 0:00:08]} d5 {[%emt 0:00:12]} 5. Bd3 {[%emt 0:00:03]} Nc6 {[%emt 0:00:04]} 6. Nbd2 {[%emt 0:00:07]} Bd6 {[%emt 0:00:07]} 7. O-O {[%emt 0:00:03]} O-O {[%emt 0:00:03]} 8. e4 {[%emt 0:00:03]} b6 {[%emt 0:00:24]} 9. e5 {[%emt 0:00:04]} c4 {[%emt 0:00:27]} 10. Bc2 {[%emt 0:00:06]} Be7 {[%emt 0:00:07]} 11. exf6 {[%emt 0:00:09]} Bxf6 {[%emt 0:00:01]} 12. Re1 {[%emt 0:00:07]} Re8 {[%emt 0:00:03]} 13. Nf1 {[%emt 0:00:06]} e5 {[%emt 0:00:13]} 14. Nxe5 {[%emt 0:00:27]} Nxe5 {[%emt 0:00:05]} 15. dxe5 {[%emt 0:00:03]} Bxe5 {[%emt 0:00:01]} 16. Bxh7+ {[%emt 0:00:53]} Kf8 {[%emt 0:00:28]} 17. Qh5 {[%emt 0:00:11]} Bxh2+ {[%emt 0:00:05]} 18. Qxh2 {[%emt 0:00:39]} Rxe1 {[%emt 0:00:03]} 19. Bc2 {[%emt 0:00:09]} Qf6 {[%emt 0:00:19]} 20. Qh8+ {[%emt 0:00:13]} Ke7 {[%emt 0:00:02]} 21. Qh2 {[%emt 0:00:02]} Bb7 {[%emt 0:00:11]} 22. Qg3 {[%emt 0:00:02]} Re5 {[%emt 0:00:07]} 23. b3 {[%emt 0:00:03]} Rh8 {[%emt 0:00:08]} 24. Ba3+ {[%emt 0:00:02]} Ke6 {[%emt 0:00:05]} 25. Qg4+ {[%emt 0:00:03]} Rf5 {[%emt 0:00:17]} 26. Bxf5+ {[%emt 0:00:02]} Qxf5 {[%emt 0:00:02]} 27. Re1+ {[%emt 0:00:02]} Kf6 {[%emt 0:00:01]} 28. Qg3 {[%emt 0:00:01]} d4 {[%emt 0:00:04]} 29. Qd6+ {[%emt 0:00:02]} Kg5 {[%emt 0:00:02]} 30. Qg3+ {[%emt 0:00:02]} Kf6 {[%emt 0:00:02]} 31. Qd6+ {[%emt 0:00:01]} Kg5 {[%emt 0:00:02]} 32. Qg3+ {[%emt 0:00:02]} Kh6 {[%emt 0:00:01]} 33. Qh4+ {[%emt 0:00:02]} Qh5 {[%emt 0:00:02]} 34. Qxh5+ {[%emt 0:00:01]} Kxh5 {[%emt 0:00:02]} 35. Re5+ {[%emt 0:00:02]} Kg6 {[%emt 0:00:02]} 36. Ng3 {[%emt 0:00:03]} dxc3 {[%emt 0:00:01]} 37. Re3 {[%emt 0:00:03]} c2 {[%emt 0:00:01]} 0-1